[Event "Titled Tuesday Blitz June 14 Early 2022"]
[White "Paravyan, David"]
[Black "Grischuk, Alexander"]
[WhiteFideId "4194985"]
[BlackFideId "4126025"]
[WhiteElo "2569"]
[BlackElo "2762"]
[Result "1/2-1/2"]
[Round "08"]
[TimeControl "180+1"]
[Date "2022.06.14"]
[WhiteClock "0:00:12"]
[BlackClock "0:00:08"]

1. e4 {[%clk 0:03:00]}  e5 {[%clk 0:03:00]} 2. Nf3 {[%clk 0:03:00]}  Nc6 {[%clk 0:03:00]} 3. Nc3 {[%clk 0:03:00]}  Nf6 {[%clk 0:03:00]} 4. d4 {[%clk 0:03:01]}  exd4 {[%clk 0:03:01]} 5. Nxd4 {[%clk 0:03:02]}  Bb4 {[%clk 0:03:02]} 6. Nxc6 {[%clk 0:03:02]}  bxc6 {[%clk 0:03:03]} 7. Bd3 {[%clk 0:03:03]}  d5 {[%clk 0:03:03]} 8. exd5 {[%clk 0:03:02]}  O-O {[%clk 0:03:03]} 9. O-O {[%clk 0:03:03]}  cxd5 {[%clk 0:03:03]} 10. Bg5 {[%clk 0:03:03]}  Be6 {[%clk 0:03:03]} 11. h3 {[%clk 0:03:02]}  Rb8 {[%clk 0:02:50]} 12. a3 {[%clk 0:02:47]}  Be7 {[%clk 0:02:46]} 13. b4 {[%clk 0:02:46]}  c5 {[%clk 0:02:44]} 14. bxc5 {[%clk 0:02:44]}  Bxc5 {[%clk 0:02:44]} 15. a4 {[%clk 0:02:42]}  h6 {[%clk 0:02:31]} 16. Bd2 {[%clk 0:02:30]}  Rc8 {[%clk 0:02:11]} 17. Rb1 {[%clk 0:02:28]}  Bd6 {[%clk 0:01:58]} 18. Nb5 {[%clk 0:02:28]}  Bb8 {[%clk 0:01:58]} 19. Bb4 {[%clk 0:02:24]}  Re8 {[%clk 0:01:58]} 20. Re1 {[%clk 0:01:50]}  Ne4 {[%clk 0:01:48]} 21. Bxe4 {[%clk 0:01:19]}  dxe4 {[%clk 0:01:49]} 22. Nd6 {[%clk 0:01:13]}  Bxd6 {[%clk 0:01:39]} 23. Bxd6 {[%clk 0:01:13]}  Qg5 {[%clk 0:01:34]} 24. Rb5 {[%clk 0:01:06]}  Qg6 {[%clk 0:01:31]} 25. Bg3 {[%clk 0:01:06]}  Red8 {[%clk 0:01:28]} 26. Qc1 {[%clk 0:01:01]}  Bc4 {[%clk 0:01:20]} 27. Rb7 {[%clk 0:00:48]}  a6 {[%clk 0:01:00]} 28. Qe3 {[%clk 0:00:46]}  Bd5 {[%clk 0:00:57]} 29. Rb6 {[%clk 0:00:45]}  Rc6 {[%clk 0:00:57]} 30. Reb1 {[%clk 0:00:43]}  Rdc8 {[%clk 0:00:53]} 31. a5 {[%clk 0:00:43]}  Qf5 {[%clk 0:00:50]} 32. Kh2 {[%clk 0:00:41]}  Bc4 {[%clk 0:00:38]} 33. Rxc6 {[%clk 0:00:35]}  Rxc6 {[%clk 0:00:39]} 34. Rb8+ {[%clk 0:00:31]}  Kh7 {[%clk 0:00:37]} 35. Qd4 {[%clk 0:00:28]}  Qd5 {[%clk 0:00:27]} 36. Be5 {[%clk 0:00:21]}  f6 {[%clk 0:00:20]} 37. Qxd5 {[%clk 0:00:13]}  Bxd5 {[%clk 0:00:21]} 38. Bd4 {[%clk 0:00:14]}  Rxc2 {[%clk 0:00:21]} 39. Rb6 {[%clk 0:00:14]}  Rc6 {[%clk 0:00:16]} 40. Rxc6 {[%clk 0:00:13]}  Bxc6 {[%clk 0:00:17]} 41. g4 {[%clk 0:00:14]}  Kg6 {[%clk 0:00:14]} 42. Kg3 {[%clk 0:00:15]}  Kf7 {[%clk 0:00:15]} 43. h4 {[%clk 0:00:15]}  Ke6 {[%clk 0:00:12]} 44. Bc5 {[%clk 0:00:14]}  g6 {[%clk 0:00:11]} 45. h5 {[%clk 0:00:12]}  Kf7 {[%clk 0:00:08]} 1/2-1/2


[Site "https://www.chess.com"]

[Event "Titled Tuesday Blitz June 14 Early 2022"]
[White "Pranav, V"]
[Black "Martinez Alcantara, Jose Eduardo"]
[WhiteFideId "25060783"]
[BlackFideId "3805662"]
[WhiteElo "2349"]
[BlackElo "2703"]
[Result "0-1"]
[Round "08"]
[TimeControl "180+1"]
[Date "2022.06.14"]
[WhiteClock "0:00:04"]
[BlackClock "0:00:47"]

1. e4 {[%clk 0:03:00]}  c5 {[%clk 0:03:00]} 2. Nf3 {[%clk 0:03:00]}  d6 {[%clk 0:03:00]} 3. c3 {[%clk 0:03:00]}  Nf6 {[%clk 0:03:00]} 4. Bd3 {[%clk 0:03:01]}  Bg4 {[%clk 0:02:58]} 5. Bc2 {[%clk 0:03:00]}  Nc6 {[%clk 0:02:58]} 6. h3 {[%clk 0:03:01]}  Bxf3 {[%clk 0:02:58]} 7. Qxf3 {[%clk 0:03:01]}  g6 {[%clk 0:02:59]} 8. O-O {[%clk 0:03:02]}  Bg7 {[%clk 0:02:59]} 9. d3 {[%clk 0:02:59]}  O-O {[%clk 0:02:59]} 10. a4 {[%clk 0:02:59]}  Nd7 {[%clk 0:02:58]} 11. Na3 {[%clk 0:02:59]}  a6 {[%clk 0:02:57]} 12. Be3 {[%clk 0:02:55]}  Rb8 {[%clk 0:02:56]} 13. Rfd1 {[%clk 0:02:49]}  b5 {[%clk 0:02:49]} 14. axb5 {[%clk 0:02:49]}  axb5 {[%clk 0:02:50]} 15. d4 {[%clk 0:02:49]}  cxd4 {[%clk 0:01:51]} 16. cxd4 {[%clk 0:02:48]}  Qb6 {[%clk 0:01:50]} 17. Qg4 {[%clk 0:02:27]}  Qb7 {[%clk 0:01:42]} 18. Rab1 {[%clk 0:02:07]}  Rfc8 {[%clk 0:01:39]} 19. Bd3 {[%clk 0:01:58]}  Bxd4 {[%clk 0:01:33]} 20. Bxb5 {[%clk 0:01:47]}  Bxe3 {[%clk 0:01:32]} 21. fxe3 {[%clk 0:01:48]}  Nf6 {[%clk 0:01:31]} 22. Qe2 {[%clk 0:01:34]}  Ra8 {[%clk 0:01:25]} 23. Rbc1 {[%clk 0:01:24]}  Ne5 {[%clk 0:01:25]} 24. Rxc8+ {[%clk 0:01:16]}  Qxc8 {[%clk 0:01:26]} 25. Nc4 {[%clk 0:01:14]}  Qc5 {[%clk 0:01:19]} 26. Nxe5 {[%clk 0:01:10]}  Qxe5 {[%clk 0:01:20]} 27. Bc6 {[%clk 0:01:11]}  Rb8 {[%clk 0:01:20]} 28. Rd2 {[%clk 0:01:05]}  Nxe4 {[%clk 0:01:19]} 29. Bxe4 {[%clk 0:01:00]}  Qxe4 {[%clk 0:01:20]} 30. Qf2 {[%clk 0:00:53]}  Rb3 {[%clk 0:01:16]} 31. Re2 {[%clk 0:00:52]}  h5 {[%clk 0:01:14]} 32. Qe1 {[%clk 0:00:50]}  Qe5 {[%clk 0:01:10]} 33. Qc1 {[%clk 0:00:47]}  Kg7 {[%clk 0:01:09]} 34. Kf2 {[%clk 0:00:41]}  h4 {[%clk 0:01:09]} 35. Qc4 {[%clk 0:00:29]}  Rxb2 {[%clk 0:00:58]} 36. Qxh4 {[%clk 0:00:27]}  Qf5+ {[%clk 0:00:57]} 37. Qf4 {[%clk 0:00:25]}  Qxf4+ {[%clk 0:00:57]} 38. exf4 {[%clk 0:00:26]}  Rxe2+ {[%clk 0:00:57]} 39. Kxe2 {[%clk 0:00:26]}  Kf6 {[%clk 0:00:53]} 40. Ke3 {[%clk 0:00:26]}  e5 {[%clk 0:00:51]} 41. Ke4 {[%clk 0:00:13]}  Ke6 {[%clk 0:00:48]} 42. fxe5 {[%clk 0:00:07]}  dxe5 {[%clk 0:00:49]} 43. h4 {[%clk 0:00:04]}  f5+ {[%clk 0:00:50]} 44. Ke3 {[%clk 0:00:04]}  Kd5 {[%clk 0:00:50]} 45. Kd3 {[%clk 0:00:04]}  f4 {[%clk 0:00:46]} 46. Kd2 {[%clk 0:00:03]}  Kd4 {[%clk 0:00:46]} 47. Ke2 {[%clk 0:00:04]}  e4 {[%clk 0:00:47]} 48. Kf2 {[%clk 0:00:05]}  Kd3 {[%clk 0:00:47]} 49. h5 {[%clk 0:00:04]}  gxh5 {[%clk 0:00:47]} 0-1


[Site "https://www.chess.com"]

[Event "Titled Tuesday Blitz June 14 Early 2022"]
[White "Preotu, Razvan"]
[Black "Pranav Anand"]
[WhiteFideId "2613280"]
[BlackFideId "46626786"]
[WhiteElo "2407"]
[BlackElo "2259"]
[Result "1-0"]
[Round "08"]
[TimeControl "180+1"]
[Date "2022.06.14"]
[WhiteClock "0:00:07"]
[BlackClock "0:01:10"]

1. e4 {[%clk 0:02:57]}  Nc6 {[%clk 0:02:59]} 2. Nf3 {[%clk 0:02:55]}  d6 {[%clk 0:02:58]} 3. d4 {[%clk 0:02:54]}  Nf6 {[%clk 0:02:58]} 4. d5 {[%clk 0:02:48]}  Nb8 {[%clk 0:02:58]} 5. Bd3 {[%clk 0:02:47]}  g6 {[%clk 0:02:58]} 6. c4 {[%clk 0:02:43]}  Bg7 {[%clk 0:02:58]} 7. Nc3 {[%clk 0:02:43]}  O-O {[%clk 0:02:58]} 8. O-O {[%clk 0:02:41]}  Bg4 {[%clk 0:02:58]} 9. h3 {[%clk 0:02:40]}  Bxf3 {[%clk 0:02:58]} 10. Qxf3 {[%clk 0:02:41]}  Nfd7 {[%clk 0:02:58]} 11. Qg3 {[%clk 0:02:07]}  c6 {[%clk 0:02:55]} 12. Be3 {[%clk 0:01:36]}  Na6 {[%clk 0:02:54]} 13. Rac1 {[%clk 0:01:35]}  Nac5 {[%clk 0:02:39]} 14. Bb1 {[%clk 0:01:33]}  a5 {[%clk 0:02:38]} 15. h4 {[%clk 0:01:29]}  a4 {[%clk 0:02:35]} 16. h5 {[%clk 0:01:28]}  Qb6 {[%clk 0:02:33]} 17. Nd1 {[%clk 0:01:18]}  Qb4 {[%clk 0:02:30]} 18. Qh3 {[%clk 0:01:07]}  Ne5 {[%clk 0:02:23]} 19. a3 {[%clk 0:00:57]}  Qb3 {[%clk 0:02:17]} 20. Rc3 {[%clk 0:00:57]}  Qb6 {[%clk 0:02:16]} 21. f4 {[%clk 0:00:55]}  Ned7 {[%clk 0:02:14]} 22. e5 {[%clk 0:00:46]}  cxd5 {[%clk 0:02:02]} 23. cxd5 {[%clk 0:00:38]}  dxe5 {[%clk 0:01:51]} 24. f5 {[%clk 0:00:38]}  e4 {[%clk 0:01:48]} 25. Rc1 {[%clk 0:00:12]}  Qd6 {[%clk 0:01:46]} 26. Nc3 {[%clk 0:00:11]}  Nf6 {[%clk 0:01:42]} 27. Nb5 {[%clk 0:00:10]}  Qb6 {[%clk 0:01:32]} 28. Bxc5 {[%clk 0:00:10]}  Nd7 {[%clk 0:01:33]} 29. Bxb6 {[%clk 0:00:10]}  Nxb6 {[%clk 0:01:27]} 30. Bxe4 {[%clk 0:00:09]}  g5 {[%clk 0:01:23]} 31. f6 {[%clk 0:00:07]}  e6 {[%clk 0:01:20]} 32. fxg7 {[%clk 0:00:07]}  Kxg7 {[%clk 0:01:20]} 33. dxe6 {[%clk 0:00:07]}  f5 {[%clk 0:01:21]} 34. Rxf5 {[%clk 0:00:07]}  h6 {[%clk 0:01:17]} 35. Rc7+ {[%clk 0:00:06]}  Kg8 {[%clk 0:01:16]} 36. Rff7 {[%clk 0:00:06]}  Rxf7 {[%clk 0:01:13]} 37. exf7+ {[%clk 0:00:06]}  Kf8 {[%clk 0:01:13]} 38. Qe6 {[%clk 0:00:06]}  Nd7 {[%clk 0:01:11]} 39. Rxd7 {[%clk 0:00:06]}  Kg7 {[%clk 0:01:11]} 40. f8=Q+ {[%clk 0:00:06]}  Kxf8 {[%clk 0:01:10]} 41. Qf7# {[%clk 0:00:07]} 1-0


[Site "https://www.chess.com"]

[Event "Titled Tuesday Blitz June 14 Early 2022"]
[White "Sanal, Vahap"]
[Black "Gunina, Valentina"]
[WhiteFideId "6300545"]
[BlackFideId "4167570"]
[WhiteElo "2574"]
[BlackElo "2386"]
[Result "1-0"]
[Round "08"]
[TimeControl "180+1"]
[Date "2022.06.14"]
[WhiteClock "0:01:33"]
[BlackClock "0:00:49"]

1. c4 {[%clk 0:03:00]}  c6 {[%clk 0:03:00]} 2. d4 {[%clk 0:02:56]}  d5 {[%clk 0:03:00]} 3. Nf3 {[%clk 0:02:55]}  Nf6 {[%clk 0:03:00]} 4. e3 {[%clk 0:02:53]}  Bf5 {[%clk 0:03:00]} 5. Nc3 {[%clk 0:02:52]}  e6 {[%clk 0:03:00]} 6. Bd3 {[%clk 0:02:52]}  Bg6 {[%clk 0:02:59]} 7. O-O {[%clk 0:02:52]}  Nbd7 {[%clk 0:03:00]} 8. b3 {[%clk 0:02:47]}  Bd6 {[%clk 0:03:00]} 9. Bb2 {[%clk 0:02:48]}  Ne4 {[%clk 0:02:59]} 10. Ne2 {[%clk 0:02:45]}  Qc7 {[%clk 0:02:57]} 11. c5 {[%clk 0:02:39]}  Be7 {[%clk 0:02:57]} 12. b4 {[%clk 0:02:39]}  O-O {[%clk 0:02:54]} 13. Ne5 {[%clk 0:02:34]}  Nxe5 {[%clk 0:02:49]} 14. dxe5 {[%clk 0:02:34]}  f6 {[%clk 0:02:46]} 15. Nf4 {[%clk 0:02:27]}  Bf7 {[%clk 0:02:39]} 16. Bxe4 {[%clk 0:02:25]}  dxe4 {[%clk 0:02:39]} 17. exf6 {[%clk 0:02:25]}  Bxf6 {[%clk 0:02:30]} 18. Bxf6 {[%clk 0:02:22]}  gxf6 {[%clk 0:02:29]} 19. Qg4+ {[%clk 0:02:20]}  Kh8 {[%clk 0:02:30]} 20. Nxe6 {[%clk 0:02:14]}  Bxe6 {[%clk 0:02:30]} 21. Qxe6 {[%clk 0:02:14]}  Rae8 {[%clk 0:02:30]} 22. Qf5 {[%clk 0:02:14]}  a5 {[%clk 0:02:28]} 23. a3 {[%clk 0:02:14]}  Re5 {[%clk 0:02:28]} 24. Qf4 {[%clk 0:02:14]}  Qg7 {[%clk 0:02:27]} 25. Rfd1 {[%clk 0:02:11]}  Rg8 {[%clk 0:01:52]} 26. g3 {[%clk 0:02:11]}  Qf7 {[%clk 0:01:44]} 27. Rd6 {[%clk 0:02:07]}  Rf8 {[%clk 0:01:35]} 28. Rad1 {[%clk 0:02:07]}  axb4 {[%clk 0:01:35]} 29. axb4 {[%clk 0:02:07]}  Re7 {[%clk 0:01:30]} 30. Rd8 {[%clk 0:02:05]}  Rxd8 {[%clk 0:01:17]} 31. Rxd8+ {[%clk 0:02:06]}  Kg7 {[%clk 0:01:17]} 32. Kg2 {[%clk 0:02:01]}  Qh5 {[%clk 0:01:12]} 33. g4 {[%clk 0:01:53]}  Qg6 {[%clk 0:01:11]} 34. h3 {[%clk 0:01:50]}  h5 {[%clk 0:01:02]} 35. Qb8 {[%clk 0:01:50]}  Qf7 {[%clk 0:00:59]} 36. gxh5 {[%clk 0:01:49]}  Qxh5 {[%clk 0:00:50]} 37. Qg3+ {[%clk 0:01:36]}  Kh7 {[%clk 0:00:50]} 38. Qg8+ {[%clk 0:01:35]}  Kh6 {[%clk 0:00:49]} 39. Qh8+ {[%clk 0:01:35]}  Rh7 {[%clk 0:00:49]} 40. Qxf6+ {[%clk 0:01:33]} 1-0


[Site "https://www.chess.com"]

[Event "Titled Tuesday Blitz June 14 Early 2022"]
[White "Shimanov, Aleksandr"]
[Black "Sadhwani, Raunak"]
[WhiteFideId "4198603"]
[BlackFideId "35093487"]
[WhiteElo "2605"]
[BlackElo "2616"]
[Result "0-1"]
[Round "08"]
[TimeControl "180+1"]
[Date "2022.06.14"]
[WhiteClock "0:00:04"]
[BlackClock "0:00:23"]

1. e4 {[%clk 0:03:00]}  e5 {[%clk 0:03:00]} 2. Nf3 {[%clk 0:03:00]}  Nc6 {[%clk 0:03:00]} 3. Nc3 {[%clk 0:03:01]}  Nf6 {[%clk 0:02:59]} 4. h3 {[%clk 0:03:01]}  d6 {[%clk 0:02:56]} 5. Bc4 {[%clk 0:02:58]}  Be7 {[%clk 0:02:56]} 6. O-O {[%clk 0:02:57]}  O-O {[%clk 0:02:56]} 7. d4 {[%clk 0:02:39]}  exd4 {[%clk 0:02:57]} 8. Nxd4 {[%clk 0:02:39]}  Re8 {[%clk 0:02:57]} 9. Re1 {[%clk 0:02:38]}  Nxd4 {[%clk 0:02:57]} 10. Qxd4 {[%clk 0:02:39]}  Nd7 {[%clk 0:02:57]} 11. Bf4 {[%clk 0:02:27]}  Bf6 {[%clk 0:02:55]} 12. Qd2 {[%clk 0:02:27]}  Ne5 {[%clk 0:02:45]} 13. Bb3 {[%clk 0:02:24]}  Be6 {[%clk 0:02:40]} 14. Bxe6 {[%clk 0:02:05]}  Rxe6 {[%clk 0:02:40]} 15. b3 {[%clk 0:02:03]}  Ng6 {[%clk 0:02:27]} 16. Bg3 {[%clk 0:02:03]}  Bxc3 {[%clk 0:02:19]} 17. Qxc3 {[%clk 0:02:03]}  Qe7 {[%clk 0:02:20]} 18. f3 {[%clk 0:01:56]}  Re8 {[%clk 0:02:18]} 19. Rad1 {[%clk 0:01:46]}  Qg5 {[%clk 0:02:04]} 20. Kh2 {[%clk 0:01:43]}  Qd8 {[%clk 0:01:33]} 21. a4 {[%clk 0:01:39]}  h5 {[%clk 0:01:33]} 22. Kh1 {[%clk 0:01:31]}  h4 {[%clk 0:01:31]} 23. Bf2 {[%clk 0:01:28]}  b6 {[%clk 0:01:27]} 24. Qd2 {[%clk 0:01:25]}  Qf6 {[%clk 0:01:23]} 25. Bd4 {[%clk 0:01:24]}  Qf4 {[%clk 0:01:22]} 26. Qxf4 {[%clk 0:01:14]}  Nxf4 {[%clk 0:01:23]} 27. Be3 {[%clk 0:01:14]}  g5 {[%clk 0:01:02]} 28. Bxf4 {[%clk 0:00:46]}  gxf4 {[%clk 0:01:03]} 29. Rd5 {[%clk 0:00:46]}  Re5 {[%clk 0:01:03]} 30. Red1 {[%clk 0:00:46]}  Kg7 {[%clk 0:01:03]} 31. Kg1 {[%clk 0:00:46]}  Kg6 {[%clk 0:00:59]} 32. Kf2 {[%clk 0:00:25]}  f5 {[%clk 0:00:59]} 33. Rxe5 {[%clk 0:00:25]}  Rxe5 {[%clk 0:01:00]} 34. Rd4 {[%clk 0:00:25]}  Rc5 {[%clk 0:00:57]} 35. c4 {[%clk 0:00:25]}  Re5 {[%clk 0:00:54]} 36. Ke2 {[%clk 0:00:21]}  Kf6 {[%clk 0:00:33]} 37. Kd3 {[%clk 0:00:21]}  a5 {[%clk 0:00:31]} 38. Ke2 {[%clk 0:00:15]}  fxe4 {[%clk 0:00:24]} 39. fxe4 {[%clk 0:00:08]}  Rg5 {[%clk 0:00:25]} 40. Kf3 {[%clk 0:00:07]}  Rg3+ {[%clk 0:00:25]} 41. Kxf4 {[%clk 0:00:07]}  Rxb3 {[%clk 0:00:26]} 42. Rd5 {[%clk 0:00:07]}  Rb4 {[%clk 0:00:26]} 43. Rh5 {[%clk 0:00:07]}  Rxa4 {[%clk 0:00:24]} 44. Rxh4 {[%clk 0:00:07]}  Rxc4 {[%clk 0:00:24]} 45. Rh5 {[%clk 0:00:05]}  a4 {[%clk 0:00:24]} 46. g4 {[%clk 0:00:05]}  a3 {[%clk 0:00:23]} 47. Rh8 {[%clk 0:00:04]}  Ra4 {[%clk 0:00:23]} 48. g5+ {[%clk 0:00:02]}  Kg7 {[%clk 0:00:23]} 49. Rc8 {[%clk 0:00:01]}  a2 {[%clk 0:00:22]} 50. Rxc7+ {[%clk 0:00:01]}  Kg6 {[%clk 0:00:22]} 51. h4 {[%clk 0:00:01]}  a1=Q {[%clk 0:00:21]} 52. h5+ {[%clk 0:00:02]}  Kxh5 {[%clk 0:00:22]} 53. Rh7+ {[%clk 0:00:02]}  Kg6 {[%clk 0:00:23]} 54. Rh6+ {[%clk 0:00:03]}  Kg7 {[%clk 0:00:23]} 55. Rxd6 {[%clk 0:00:04]}  Qf1+ {[%clk 0:00:23]} 0-1


[Site "https://www.chess.com"]

[Event "Titled Tuesday Blitz June 14 Early 2022"]
[White "Shipov, Sergei"]
[Black "Sarana, Alexey"]
[WhiteFideId "4113624"]
[BlackFideId "24133795"]
[WhiteElo "2800"]
[BlackElo "2666"]
[Result "0-1"]
[Round "08"]
[TimeControl "180+1"]
[Date "2022.06.14"]
[WhiteClock "0:00:04"]
[BlackClock "0:00:34"]

1. d4 {[%clk 0:03:00]}  b6 {[%clk 0:03:00]} 2. c4 {[%clk 0:03:00]}  Bb7 {[%clk 0:03:01]} 3. f3 {[%clk 0:02:55]}  f5 {[%clk 0:02:54]} 4. Nc3 {[%clk 0:02:53]}  Nf6 {[%clk 0:02:53]} 5. Nh3 {[%clk 0:02:50]}  g6 {[%clk 0:02:51]} 6. e3 {[%clk 0:02:34]}  Bg7 {[%clk 0:02:50]} 7. Be2 {[%clk 0:02:34]}  O-O {[%clk 0:02:50]} 8. O-O {[%clk 0:02:34]}  e6 {[%clk 0:02:51]} 9. Qc2 {[%clk 0:02:26]}  d6 {[%clk 0:02:51]} 10. b3 {[%clk 0:02:25]}  Nbd7 {[%clk 0:02:51]} 11. Bb2 {[%clk 0:02:26]}  e5 {[%clk 0:02:49]} 12. d5 {[%clk 0:02:25]}  a5 {[%clk 0:02:48]} 13. a3 {[%clk 0:02:22]}  Bh6 {[%clk 0:02:46]} 14. f4 {[%clk 0:02:18]}  Qe7 {[%clk 0:02:46]} 15. Rae1 {[%clk 0:02:16]}  Nc5 {[%clk 0:02:41]} 16. Bd1 {[%clk 0:02:03]}  Rae8 {[%clk 0:02:38]} 17. Qd2 {[%clk 0:02:02]}  Ba6 {[%clk 0:02:31]} 18. Nf2 {[%clk 0:01:53]}  a4 {[%clk 0:02:22]} 19. b4 {[%clk 0:01:53]}  Nb3 {[%clk 0:02:22]} 20. Bxb3 {[%clk 0:01:52]}  axb3 {[%clk 0:02:23]} 21. b5 {[%clk 0:01:52]}  Bb7 {[%clk 0:02:18]} 22. Nd3 {[%clk 0:01:51]}  Ne4 {[%clk 0:02:00]} 23. Nxe4 {[%clk 0:01:45]}  fxe4 {[%clk 0:02:01]} 24. Nb4 {[%clk 0:01:42]}  exf4 {[%clk 0:02:01]} 25. exf4 {[%clk 0:01:33]}  e3 {[%clk 0:01:58]} 26. Qd4 {[%clk 0:01:31]}  Bg7 {[%clk 0:01:58]} 27. Qxg7+ {[%clk 0:01:31]}  Qxg7 {[%clk 0:01:59]} 28. Bxg7 {[%clk 0:01:31]}  Kxg7 {[%clk 0:01:59]} 29. Rf3 {[%clk 0:01:16]}  Bc8 {[%clk 0:01:40]} 30. Nd3 {[%clk 0:00:34]}  Re4 {[%clk 0:01:21]} 31. Nb2 {[%clk 0:00:30]}  Rfe8 {[%clk 0:01:21]} 32. h3 {[%clk 0:00:26]}  Bf5 {[%clk 0:01:15]} 33. g4 {[%clk 0:00:24]}  Bd7 {[%clk 0:01:14]} 34. Kg2 {[%clk 0:00:23]}  h5 {[%clk 0:01:12]} 35. Kg3 {[%clk 0:00:23]}  hxg4 {[%clk 0:01:05]} 36. hxg4 {[%clk 0:00:23]}  g5 {[%clk 0:01:06]} 37. f5 {[%clk 0:00:23]}  Kf6 {[%clk 0:01:06]} 38. Re2 {[%clk 0:00:23]}  R8e7 {[%clk 0:01:01]} 39. Re1 {[%clk 0:00:23]}  e2 {[%clk 0:00:51]} 40. Rxb3 {[%clk 0:00:22]}  Rh7 {[%clk 0:00:47]} 41. Nd3 {[%clk 0:00:15]}  Re3+ {[%clk 0:00:48]} 42. Kf2 {[%clk 0:00:15]}  Rhh3 {[%clk 0:00:48]} 43. Rxe2 {[%clk 0:00:13]}  Rxd3 {[%clk 0:00:48]} 44. Rxd3 {[%clk 0:00:14]}  Rxd3 {[%clk 0:00:49]} 45. a4 {[%clk 0:00:13]}  Rd4 {[%clk 0:00:49]} 46. Kf3 {[%clk 0:00:14]}  Rf4+ {[%clk 0:00:44]} 47. Kg3 {[%clk 0:00:14]}  Rxc4 {[%clk 0:00:44]} 48. Rh2 {[%clk 0:00:14]}  Rxa4 {[%clk 0:00:45]} 49. Rh6+ {[%clk 0:00:14]}  Ke5 {[%clk 0:00:45]} 50. Rh7 {[%clk 0:00:14]}  Bxb5 {[%clk 0:00:45]} 51. Rxc7 {[%clk 0:00:14]}  Ra3+ {[%clk 0:00:45]} 52. Kf2 {[%clk 0:00:13]}  Ra2+ {[%clk 0:00:41]} 53. Kg3 {[%clk 0:00:13]}  Ra3+ {[%clk 0:00:41]} 54. Kf2 {[%clk 0:00:13]}  Ra4 {[%clk 0:00:42]} 55. Kg3 {[%clk 0:00:13]}  Kxd5 {[%clk 0:00:41]} 56. Rg7 {[%clk 0:00:12]}  Ra3+ {[%clk 0:00:40]} 57. Kf2 {[%clk 0:00:12]}  Ke5 {[%clk 0:00:40]} 58. Rxg5 {[%clk 0:00:11]}  Kf4 {[%clk 0:00:41]} 59. Rg6 {[%clk 0:00:11]}  Ra2+ {[%clk 0:00:41]} 60. Ke1 {[%clk 0:00:10]}  Bd3 {[%clk 0:00:41]} 61. Re6 {[%clk 0:00:07]}  d5 {[%clk 0:00:36]} 62. f6 {[%clk 0:00:07]}  Ra7 {[%clk 0:00:36]} 63. Kd2 {[%clk 0:00:06]}  Be4 {[%clk 0:00:35]} 64. Rxb6 {[%clk 0:00:06]}  Kxg4 {[%clk 0:00:35]} 65. Ke3 {[%clk 0:00:07]}  Kf5 {[%clk 0:00:35]} 66. Kd4 {[%clk 0:00:07]}  Rf7 {[%clk 0:00:36]} 67. Rd6 {[%clk 0:00:06]}  Rxf6 {[%clk 0:00:36]} 68. Rxd5+ {[%clk 0:00:05]}  Bxd5 {[%clk 0:00:36]} 69. Kxd5 {[%clk 0:00:04]}  Kf4 {[%clk 0:00:34]} 0-1


[Site "https://www.chess.com"]

[Event "Titled Tuesday Blitz June 14 Early 2022"]
[White "Tatarinov, Dmitry"]
[Black "Morefield, Jason"]
[WhiteFideId "24160067"]
[BlackFideId "30920825"]
[WhiteElo "2302"]
[BlackElo "2171"]
[Result "0-1"]
[Round "08"]
[TimeControl "180+1"]
[Date "2022.06.14"]
[WhiteClock "0:00:00"]
[BlackClock "0:00:06"]

1. d4 {[%clk 0:03:00]}  Nf6 {[%clk 0:02:54]} 2. c4 {[%clk 0:03:00]}  e6 {[%clk 0:02:54]} 3. g3 {[%clk 0:02:58]}  Bb4+ {[%clk 0:02:51]} 4. Bd2 {[%clk 0:02:56]}  Be7 {[%clk 0:02:50]} 5. Bg2 {[%clk 0:02:53]}  O-O {[%clk 0:02:50]} 6. e4 {[%clk 0:02:50]}  d5 {[%clk 0:02:44]} 7. cxd5 {[%clk 0:02:46]}  exd5 {[%clk 0:02:44]} 8. e5 {[%clk 0:02:44]}  Ne4 {[%clk 0:02:43]} 9. Nc3 {[%clk 0:02:44]}  Nc6 {[%clk 0:02:29]} 10. Nge2 {[%clk 0:02:36]}  Bf5 {[%clk 0:01:54]} 11. O-O {[%clk 0:02:34]}  f6 {[%clk 0:01:50]} 12. exf6 {[%clk 0:02:26]}  Bxf6 {[%clk 0:01:46]} 13. Be3 {[%clk 0:02:26]}  Nxc3 {[%clk 0:01:39]} 14. bxc3 {[%clk 0:02:18]}  Na5 {[%clk 0:01:33]} 15. Nf4 {[%clk 0:02:13]}  c6 {[%clk 0:01:32]} 16. Qh5 {[%clk 0:01:58]}  g6 {[%clk 0:01:23]} 17. Qd1 {[%clk 0:01:54]}  Nc4 {[%clk 0:01:22]} 18. Re1 {[%clk 0:01:47]}  Nxe3 {[%clk 0:01:06]} 19. Rxe3 {[%clk 0:01:45]}  Bg5 {[%clk 0:01:01]} 20. Ne6 {[%clk 0:01:45]}  Qf6 {[%clk 0:00:31]} 21. Nxg5 {[%clk 0:01:42]}  Qxg5 {[%clk 0:00:32]} 22. a4 {[%clk 0:01:32]}  Rae8 {[%clk 0:00:30]} 23. f4 {[%clk 0:01:31]}  Qd8 {[%clk 0:00:28]} 24. Re5 {[%clk 0:01:32]}  Rxe5 {[%clk 0:00:23]} 25. dxe5 {[%clk 0:01:30]}  Be6 {[%clk 0:00:19]} 26. a5 {[%clk 0:01:28]}  c5 {[%clk 0:00:16]} 27. h4 {[%clk 0:01:24]}  b6 {[%clk 0:00:11]} 28. axb6 {[%clk 0:01:22]}  axb6 {[%clk 0:00:12]} 29. Kh2 {[%clk 0:01:22]}  Rf7 {[%clk 0:00:11]} 30. Ra6 {[%clk 0:01:02]}  Kg7 {[%clk 0:00:11]} 31. h5 {[%clk 0:00:57]}  g5 {[%clk 0:00:09]} 32. fxg5 {[%clk 0:00:21]}  Qxg5 {[%clk 0:00:10]} 33. Rxb6 {[%clk 0:00:19]}  Qxe5 {[%clk 0:00:08]} 34. h6+ {[%clk 0:00:18]}  Kg8 {[%clk 0:00:06]} 35. Qd2 {[%clk 0:00:11]}  Qh5+ {[%clk 0:00:05]} 36. Kg1 {[%clk 0:00:11]}  Qe5 {[%clk 0:00:05]} 37. Rxe6 {[%clk 0:00:10]}  Qxe6 {[%clk 0:00:05]} 38. Bxd5 {[%clk 0:00:04]}  Qf6 {[%clk 0:00:05]} 39. Bxf7+ {[%clk 0:00:00]}  Kxf7 {[%clk 0:00:06]} 0-1


[Site "https://www.chess.com"]